Cogmind - Beta 15 @@@ ROGUE MODE // 2025.07.16 @ 19:08:24 Player: SpaceExplorer337 Result: Destroyed by D-53 Grenadier with Mini Grenade Launcher Performance ------------- Evolutions (0) 0 Regions Visited (2) 400 Robots Destroyed (17) 85 Value Destroyed (121) 121 Prototype IDs (0) 0 Alien Tech Used (0) 0 Bonus (0) 0 TOTAL SCORE: 606 Bonus ------- None Cogmind --------- Core Integrity 0/250 Matter 450/450 Energy 100/100 System Corruption 0% Temperature Cool (0) Movement Core (400) Ox7 Location -10/Mines Parts ------- > --- POWER (1) -------- (None) > --- PROPULSION (2) --- (None) > --- UTILITY (2) ------ Large Storage Unit Large Matter Pod > --- WEAPON (2) ------- (None) > --- INVENTORY (15) --- Ion Engine Flight Unit Heat Sink Medium Storage Unit Hacking Suite EM Pulse Gun Small Laser Beam Cannon Light Assault Rifle Grenade Launcher Hammer Peak State ------------ > --- POWER ------------ Ion Engine > --- PROPULSION ------- Aluminum Leg Aluminum Leg > --- UTILITY ---------- Small Storage Unit Improved Terrain Scanner > --- WEAPON ----------- Small Laser Light Assault Rifle > --- INVENTORY -------- Ion Engine EM Pulse Gun [Rating: 9] Favorites ----------- Power Ion Engine Engine Ion Engine Propulsion Aluminum Leg Leg Aluminum Leg Utility Small Storage Unit Device Improved Terrain Scanner Storage Small Storage Unit Weapon Light Assault Rifle Energy Gun Small Laser Ballistic Gun Light Assault Rifle Build | -11 -10 -10 ------- Run | Yrd Mat Min Slots Evolved . | . . . Power . | . . . Propulsion . | . . . Utility . | . . . Weapon . | . . . Parts Attached 10 | 5 5 . Power 1 | 1 . . Engine 1 | 1 . . Core . | . . . Reactor . | . . . Propulsion 2 | 1 1 . Treads . | . . . Leg 2 | 1 1 . Wheel . | . . . Hover . | . . . Flight . | . . . Utility 5 | 1 4 . Device 1 | . 1 . Storage 4 | 1 3 . Processor . | . . . Hackware . | . . . Protection . | . . . Artifact . | . . . Weapon 2 | 2 . . Energy Gun 1 | 1 . . Energy Cannon . | . . . Ballistic Gun 1 | 1 . . Ballistic Cannon . | . . . Launcher . | . . . Special Weapon . | . . . Impact Weapon . | . . . Slashing Weapon . | . . . Piercing Weapon . | . . . Special Melee Weapon . | . . . Unidentified Prototypes . | . . . Parts Lost 6 | . 1 5 Power 1 | . . 1 Propulsion 2 | . . 2 Utility 1 | . 1 . Weapon 2 | . . 2 Highest Loss Streak 5 | . 1 5 To Critical Strikes . | . . . Average Backups 5 | 3 7 11 Power . | . 1 1 Propulsion . | . . 1 Utility 1 | . 1 3 Weapon 2 | . 3 6 Tool/Special . | . . . Unused Backups 9 | . . 9 Power 1 | . . 1 Propulsion 1 | . . 1 Utility 1 | . . 1 Weapon 6 | . . 6 Tool/Special . | . . . Average Slot Usage (%) 96 | . 96 100 Engine 14 | . 14 14 Leg 28 | . 28 28 Device 3 | . 4 . Storage 21 | . 20 28 Energy Gun 14 | . 14 14 Ballistic Gun 14 | . 14 14 Peak Build Rating 9 | 5 9 8 Average Rating 6 | 4 7 7 On Entrance 4 | . 5 8 Naked Turns . | . . . Heaviest Build 30 | 12 30 30 Greatest Support 20 | 10 20 20 Greatest Overweight (x) 7 | 1 1 7 Average Overweight (x) . | . . 1 Largest Inventory Capacity 15 | 8 15 15 Average Capacity 9 | 7 10 15 Most Carried 11 | 5 11 11 Average Carried 5 | 3 7 11 Final Capacity 15 | 8 15 15 Final Carried 11 | 4 11 11 Class Distribution -------------------- 100% | Mutant Dominant Class ---------------- Mutant | -10/Materials Mutant | -10/Mines Resources | -11 -10 -10 ----------- Run | Yrd Mat Min Matter Collected 481 | 274 207 . Remotely . | . . . Salvage Created 391 | 199 192 . Parts 29 | 14 15 . Haulers Intercepted . | . . . Recyclers Shooed . | . . . Parts Field Recycled . | . . . Retrieved Matter . | . . . Parts Self-Destructed . | . . . Prevented . | . . . Kills | -11 -10 -10 ------- Run | Yrd Mat Min Combat Hostiles Destroyed 5 | . 5 . Guns 5 | . 5 . Classes Destroyed 6 | 3 3 . Worker 3 | 2 1 . Builder 1 | . 1 . Tunneler 5 | 5 . . Recycler 2 | 1 1 . Operator 1 | . 1 . Swarmer 5 | . 5 . Best Kill Streak 5 | 3 5 . Combat Bots Only 3 | . 3 . Max Kills in Single Turn 2 | 1 2 . Gunslinging 1 | . 1 . Exploded . | . . . Melee . | . . . Uniques/NPCs Destroyed . | . . . Combat | -11 -10 -10 -------- Run | Yrd Mat Min Hostile Shots Fired 92 | . 61 31 Missed 26 | . 18 8 Hits 66 | . 43 23 Melee 1 | . . 1 Projectile 65 | . 43 22 AOE 1 | . . 1 Critical Strikes 1 | . . 1 Damage Taken 712 | . 355 357 Core 256 | . 56 200 Absorbed by Shields . | . . . Core Remaining (%) 100 | 100 . . Volleys Fired 48 | 24 24 . Largest 2 | 2 2 . Hottest 60 | 60 60 . Shots Fired 95 | 48 47 . Gun 95 | 48 47 . Cannon . | . . . Launcher . | . . . Special . | . . . Kinetic 48 | 24 24 . Thermal 47 | 24 23 . Explosive . | . . . Electromagnetic . | . . . Robot Hit Streak 7 | 7 4 . Robot Miss Streak 6 | 3 6 . Penetration Max . | . . . Secondary Targets 1 | . 1 . Max Gunslinging Chain 1 | . 1 . Shots Hit Robots 50 | 27 23 . Core Hits 23 | 11 12 . Critical Kills . | . . . Critical Parts Destroyed . | . . . Critical Strikes . | . . . Melee Attacks . | . . . Impact . | . . . Slashing . | . . . Piercing . | . . . Sneak Attacks . | . . . Combat Hostiles . | . . . Follow-up Attacks . | . . . Damage Inflicted 516 | 254 262 . Guns 516 | 254 262 . Cannons . | . . . Explosions . | . . . Melee . | . . . Ramming . | . . . Kinetic 251 | 108 143 . Thermal 265 | 146 119 . Explosive . | . . . Electromagnetic . | . . . Impact . | . . . Slashing . | . . . Piercing . | . . . Highest Corruption . | . . . Average Corruption . | . . . Corruption Purged . | . . . Corruption Blocked . | . . . Overload Shots . | . . . Overflow Damage . | . . . Projectiles . | . . . Explosions . | . . . Melee . | . . . Knockbacks . | . . . Impact . | . . . Kinetic . | . . . Secondary . | . . . Self-Inflicted Damage . | . . . Shots . | . . . Rammed . | . . . Targets Rammed . | . . . Kicked . | . . . Crushed . | . . . Highest Temperature 40 | 40 40 2 Average Temperature 20 | 18 21 2 Received Heat Transfer 60 | . . 60 Siege Activations . | . . . Martial Activations . | . . . Shielding Activations . | . . . Robots Disrupted . | . . . Combat Hostiles . | . . . Robots Corrupted . | . . . Combat Hostiles . | . . . Parts Fried . | . . . Impact Corruptions . | . . . Robots Melted . | . . . Combat Hostiles . | . . . Parts Melted . | . . . Heat Transferred 600 | 325 275 . Parts Sabotaged . | . . . Parts Stolen . | . . . Parts Stripped . | . . . Power Chain Reactions . | . . . Alert | -11 -10 -10 ------- Run | Yrd Mat Min Maximum Alert Level . | . . . Low Security (%) 100 | 100 100 100 Level 1 . | . . . Level 2 . | . . . Level 3 . | . . . Level 4 . | . . . Level 5 . | . . . High Security . | . . . Max Security . | . . . Peak Influence 77 | 10 77 . Initial . | . . . Average 8 | 1 17 . Influence Increases 200 | 40 160 . Destroy 0b10 Robot/C 100 | . 100 . Destroy 0b10 Robot/NC 60 | 40 20 . Destroy Leader 20 | . 20 . Successful Hack 20 | . 20 . Influence Decreases 200 | 40 160 . Time Decay 190 | 40 150 . Lost Part 10 | . 10 . Squads Dispatched . | . . . Investigation . | . . . Extermination . | . . . Reinforcement . | . . . Assault . | . . . Garrison . | . . . Intercept . | . . . Searches Triggered . | . . . Construction Impeded . | . . . Haulers Reinforced . | . . . Active Scanning Responses . | . . . Cargo Convoy Interrupts . | . . . Stealth | -11 -10 -10 --------- Run | Yrd Mat Min Distress Signals . | . . . Communications Jammed . | . . . Distress Signals . | . . . Times Spotted 27 | . 9 18 Peak Tracking Total 18 | . 3 18 Tactical Retreats 1 | . . 1 Traps | -11 -10 -10 ------- Run | Yrd Mat Min Traps Triggered . | . . . Indirectly . | . . . Trap Hack Attempts . | . . . Triggered . | . . . Disarmed . | . . . Reprogrammed . | . . . Reused . | . . . Traps Extracted . | . . . Installed . | . . . Triggered . | . . . Machines | -11 -10 -10 ---------- Run | Yrd Mat Min Machines Disabled . | . . . Max in Single Turn . | . . . Machines Repaired . | . . . Machines Dismantled . | . . . Machines Sabotaged . | . . . Overloaded Fab Kills . | . . . Hacking | -11 -10 -10 --------- Run | Yrd Mat Min Machines Accessed 3 | . 3 . Terminals 3 | . 3 . Fabricators . | . . . Repair Stations . | . . . Recycling Units . | . . . Scanalyzers . | . . . Garrison Access . | . . . Total Hacks 12 | . 12 . Successful 9 | . 9 . Failed 3 | . 3 . Catastrophic . | . . . Database Lockouts . | . . . Manual . | . . . Terminals 12 | . 12 . Fabricators . | . . . Repair Stations . | . . . Recycling Units . | . . . Scanalyzers . | . . . Garrison Access . | . . . Terminal Hacks 9 | . 9 . Record 6 | . 6 . Locate Traps 1 | . 1 . Dispatch Records 1 | . 1 . Zone Layout 1 | . 1 . Fabricator Hacks . | . . . Repair Station Hacks . | . . . Recycling Unit Hacks . | . . . Scanalyzer . | . . . Garrison Access Hacks . | . . . Unauthorized Hacks . | . . . Terminals . | . . . Fabricators . | . . . Repair Stations . | . . . Recycling Units . | . . . Scanalyzers . | . . . Garrison Access . | . . . Data Cores Recovered 1 | . 1 . Used . | . . . Hacking Detections 2 | . 2 . Full Trace Events . | . . . Feedback Events . | . . . Feedback Blocked . | . . . Robot Schematics Acquired . | . . . Robots Built . | . . . Authchips . | . . . Time . | . . . Total Robot Build Rating . | . . . Part Schematics Acquired . | . . . Parts Built . | . . . Authchips . | . . . Time . | . . . Total Part Build Rating . | . . . Parts Repaired . | . . . Time . | . . . Parts Recycled . | . . . Recycled Matter . | . . . Retrieved Matter . | . . . Retrieved Components . | . . . Parts Scanalyzed . | . . . Part Schematics Acquired . | . . . Parts Damaged . | . . . Bothacking | -11 -10 -10 ------------ Run | Yrd Mat Min Used RIF Installer . | . . . Robots Hacked . | . . . Non-combat . | . . . Combat . | . . . Robot Hacks Applied . | . . . Relay Couplers Released . | . . . Fabnet Peak Effective % . | . . . Robots Rewired . | . . . Allies Hacked . | . . . Hacks Repelled . | . . . Allies | -11 -10 -10 -------- Run | Yrd Mat Min Total Allies . | . . . Largest Group . | . . . Highest-Rated Group . | . . . Highest-Rated Ally . | . . . Total Orders . | . . . Ally Attacks . | . . . Total Damage . | . . . Kills . | . . . Allies Corrupted . | . . . Allies Melted . | . . . Intel | -11 -10 -10 ------- Run | Yrd Mat Min Active Infowar (turns) 143 | . 143 . Terrain 143 | . 143 . Robot Analysis Total . | . . . Derelict Logs Recovered . | . . . Drone Launches . | . . . Drone Recoveries . | . . . Exploration | -11 -10 -10 ------------- Run | Yrd Mat Min Turns Passed 986 | 459 485 42 Spaces Moved 510 | 207 284 19 Core 11 | 10 . 1 Treads . | . . . Legs 499 | 197 284 18 Wheels . | . . . Hover . | . . . Flight . | . . . Fastest Speed 50 | 50 120 190 Average Speed 161 | 183 141 204 Slowest Speed 400 | 190 190 400 Overloaded Moves . | . . . Propulsion Burnouts . | . . . Robots Hopped . | . . . Potential Cave-ins . | . . . Cave-ins Triggered . | . . . Exploration Rate (%) 24 | 10 44 18 Regions Visited 2 Branch Regions 1 Pre-discovered Areas . | . . . Known Exits Taken . | . . . Unknown Exits Taken 2 | 1 1 . Scrap Searched . | . . . Spaces Dug . | . . . Terrain Destroyed . | . . . Melee . | . . . Projectile . | . . . AOE . | . . . Terrain Rammed . | . . . Walls Destroyed . | . . . Machines Disabled . | . . . Actions | -11 -10 -10 --------- Run | Yrd Mat Min Total 591 | 244 324 23 Wait 4 | . . 4 Move 508 | 206 283 19 Hop . | . . . Pick Up 20 | 9 11 . Fast Attach . | . . . Attach 8 | 5 3 . Detach . | . . . Swap 2 | . 2 . Drop 1 | . 1 . Fire 48 | 24 24 . Melee . | . . . Ram . | . . . Kick . | . . . Crush . | . . . Escape Stasis . | . . . Rewire . | . . . Trap . | . . . Miscellaneous . | . . . Route ------- -11/Scrapyard -10/Materials (discovered 2 exits: [*Mat] / [*Min]) -10/Mines History --------- Turn | Location | Event 18 | -11/Scrapyard | Discovered new exit (range 16) 460 | -11/Scrapyard | Entered Materials 482 | -10/Materials | Build established: Mutant 716 | -10/Materials | Discovered new exit (range 16) 898 | -10/Materials | Discovered new exit (range 16) 945 | -10/Materials | Entered Mines 946 | -10/Mines | Assembled infested the area 951 | -10/Mines | Assisted by a Guerilla fighting off Assembled 985 | -10/Mines | Core integrity fell below 50% 987 | -10/Mines | Core integrity fell below 20% 987 | -10/Mines | Destroyed by D-53 Grenadier with Mini Grenade Launcher Last Messages --------------- need to get out of here! I've been tracking a group of Assembled to figure out where they're coming from, and they're closing on this area, come on!" 00956_ T-07 Excavator destroyed. 00957_ MP-WBT(h): "I'll hold them off! Go on ahead or try to find another way!" 00957_ HV Slug penetrates Wall. 00959_ as-18098 suffers critical hit (Destroy). 00959_ as-18098 knocked back. 00974_ C-30 ARC bursts open, deploying its payload. 00974_ D-53 Grenadier unfolds itself. 00980_ Sml. Laser destroyed. 00980_ Aluminum Leg destroyed. 00982_ Ion Engine destroyed. 00983_ Aluminum Leg destroyed. 00984_ Lgt. Assault Rifle destroyed. 00985_ as-29558 destroyed. 00987_ as-50742 destroyed. Map ----- +----------------------------------------------------+ | ??????????????????????????????????????????? | | ??????????????????????????????????????????? | | ??????????????????????????????????????????? | | ??????????????????????????????????????????? | | ??????????????????????????????????????????? | | ??????????????????????????????????????????? | | ??????????????????????????????????????????? | | ??????????????????????????????????????????? | | ??????????????????????????????????????????? | | ??????????????????? ??????????????????????? | | ??????????????????? ??????????????????????? | | ???????????????????%??????????????????????? | | ??????????????????? ??????????????????????? | | ??????????????????? ??????????????????????? | | ??????????????????? ??????????????????????? | | ??????????????????? ??????????????###?????? | | ??????????????????# #??????????? #????? | | ??????????????????# #??????????? ????? | | ????????????# ???# #??????????# ???? | | ????????????# ### #?????????# #??? | | ???????????? #????????# #??? | | ????????????? #???????? #??? | | ???????????????# ?###### #???? | | ???????????????# # ## #????? | | ???????????????# dd #?????? | | ???????????????# @ ##????? | | ???????????????# a%a ##???? | | ???????????????# aa ##??? | | ???????????????# # a #??? | | ???????????????##??# ## a #??? | | ???????????????????# ### = % ##??? | | ???????????????????# #?###%! #???? | | ???????????????????#$#???##% a #???? | | ???????????????????# #????# a = #??? | | ???????????????????? ???? aaa !% #??? | | ???????????????????? ???### * #?? | | ???????????????????? ?????## # #?? | | ????????????????????#??????## #; #?? | | ????????????????????????????#a ;? #?? | | ????????????????????????????#a #?? #? | | ???????????????????????????? #?? #? | | ???????????????????????????? ??? ##? | | ???????????????????????????? ??? #?? | | ???????????????????????????? ???? ##?? | | ???????????????????????????? ??????#???? | | ???????????????????????????? ??????????? | | ???????????????????????????? #??????????? | | ????????????????????????????###???????????? | | ??????????????????????????????????????????? | | ??????????????????????????????????????????? | +----------------------------------------------------+ Best States ------------- Heat Dissipation 25 Energy Generation 10 Energy Capacity 250 Matter Stores 450 Matter Capacity 450 Sight Range 16 Terrain Scan Range 16 Terrain Scan Density 10 Evasion (%) 55 Item Schematics ----------------- None Robot Schematics ------------------ None Fabricated ------------ Nothing Repaired ---------- Nothing Alien Tech Used ----------------- None Achievements -------------- None Challenges ------------ None Game ------ Seed WeightCorruptionClaw Manual? 0 Play Time 00:10:28 Cumulative 14.9 hours Start 2025.07.16 @ 18:58:39 End 2025.07.16 @ 19:08:24 Sessions 1 Manual Loads 0 Difficulty Rogue Special Mode None Game No. 24 Rogue 24 Adventurer 0 Explorer 0 Win Type - Total 0 Types 0/0/0/0/0/0/0/0/0/0 Lore% 14 Gallery% 16 Achievement% 16 Wizard Run 0 Options --------- Layout 1 ASCII 0 Keyboard 0 Movement Mouse Keybinds 0 Fullscreen 1 Font 24/Smallcaps Map View 50x40 Zoom Use 0% Tactical HUD 1 Map Filters NONE Filters NONE Steam 1 RUN: 410bb834-8929-4e7b-8ee9-d80728b7e926